Cogmind - Beta 10.2 @@@ ROGUE MODE // 2021.02.04 @ 22:26:58 Player: Demise Result: Destroyed by as-95983 with Assembled Heavy Rifle Performance ------------- Evolutions (0) 0 Regions Visited (2) 400 Robots Destroyed (35) 175 Value Destroyed (796) 796 Prototype IDs (2) 40 Alien Tech Used (0) 0 Bonus (8) 8 TOTAL SCORE: 1419 Bonus ------- High Alert Combat Kills 8 Cogmind --------- Core Integrity 0/250 Matter 195/300 Energy 100/100 System Corruption 0% Temperature Cool (0) Movement Core (900) Ox17 Location -10/Mines Parts ------- > --- POWER (1) -------- (None) > --- PROPULSION (2) --- (None) > --- UTILITY (2) ------ Large Storage Unit High-capacity Storage Unit > --- WEAPON (2) ------- Assault Rifle Grenade Launcher > --- INVENTORY (18) --- Ion Engine Large Storage Unit Large Matter Pod (150) Structural Scanner Signal Interpreter Light Armor Plating Light Armor Plating Light Armor Plating Decoy Drone Bay Assault Rifle Assault Rifle Assault Rifle Assault Rifle Assault Rifle Datajack Mining Laser Peak State ------------ > --- POWER ------------ Light Nuclear Core > --- PROPULSION ------- Light Treads Light Treads > --- UTILITY ---------- Large Storage Unit High-capacity Storage Unit > --- WEAPON ----------- Assault Rifle Assault Rifle > --- INVENTORY -------- Ion Engine Large Storage Unit Large Matter Pod Structural Scanner Signal Interpreter Light Armor Plating Light Armor Plating Light Armor Plating Decoy Drone Bay Assault Rifle Assault Rifle Assault Rifle Assault Rifle Assault Rifle Grenade Launcher Datajack Mining Laser [Rating: 12] Favorites ----------- Power Ion Engine Engine Ion Engine Power Core Light Nuclear Core Propulsion Light Treads Treads Light Treads Utility Large Storage Unit Storage Large Storage Unit Processor Signal Interpreter Weapon Assault Rifle Ballistic Gun Assault Rifle Launcher Grenade Launcher Special Weapon Mining Laser Build | -11 -10 -10 ------- Run | Scr Mat Min Slots Evolved . | . . . Power . | . . . Propulsion . | . . . Utility . | . . . Weapon . | . . . Parts Attached 28 | 5 19 4 Power 6 | . 5 1 Engine 5 | . 5 . Core 1 | . . 1 Reactor . | . . . Propulsion 4 | 2 2 . Treads 4 | 2 2 . Leg . | . . . Wheel . | . . . Hover . | . . . Flight . | . . . Utility 6 | 1 5 . Device . | . . . Storage 4 | 1 3 . Processor 2 | . 2 . Hackware . | . . . Protection . | . . . Artifact . | . . . Weapon 12 | 2 7 3 Energy Gun . | . . . Energy Cannon . | . . . Ballistic Gun 10 | 2 6 2 Ballistic Cannon . | . . . Launcher 1 | . . 1 Special Weapon 1 | . 1 . Impact Weapon . | . . . Slashing Weapon . | . . . Piercing Weapon . | . . . Special Melee Weapon . | . . . Unidentified Prototypes . | . . . Parts Lost 5 | . 2 3 Power 1 | . . 1 Propulsion 1 | . . 1 Utility . | . . . Weapon 3 | . 2 1 Highest Loss Streak 3 | . 1 3 Average Slot Usage (%) 92 | . 91 93 Engine 7 | . 8 . Core 1 | . . 12 Treads 26 | . 27 22 Storage 15 | . 13 28 Processor 11 | . 13 . Ballistic Gun 27 | . 27 27 Naked Turns . | . . . Heaviest Build 57 | 3 57 57 Greatest Support 40 | 3 40 40 Greatest Overweight (x) 1 | . 1 1 Average Overweight (x) . | . . 1 Largest Inventory Capacity 18 | 6 18 18 Average Capacity 10 | 4 9 18 Most Carried 18 | 4 18 18 Average Carried 8 | 2 7 17 Final Capacity 18 | 4 18 18 Final Carried 18 | 4 18 17 Class Distribution -------------------- 97% | Mutant Dominant Class ---------------- Mutant | -10/Materials Mutant | -10/Mines Resources | -11 -10 -10 ----------- Run | Scr Mat Min Matter Collected 1161 | 274 841 46 Remotely . | . . . Salvage Created 1230 | 131 916 183 Parts 83 | 6 63 14 Haulers Intercepted 2 | . 2 . Recyclers Shooed 1 | . 1 . Parts Field Recycled . | . . . Retrieved Matter . | . . . Parts Self-Destructed . | . . . Prevented . | . . . Kills | -11 -10 -10 ------- Run | Scr Mat Min Combat Hostiles Destroyed 32 | . 21 11 Guns 27 | . 21 6 AOE 5 | . . 5 Classes Destroyed 9 | 2 6 1 Worker 3 | . 1 2 Tunneler 3 | 2 1 . Hauler 2 | . 2 . Recycler 1 | 1 . . Operator 1 | . 1 . Watcher 2 | . 2 . Swarmer 6 | . 6 . Grunt 17 | . 15 2 Assembled 9 | . . 9 Best Kill Streak 12 | 2 12 9 Combat Bots Only 9 | . 8 9 Max Kills in Single Turn 2 | 1 1 2 Gunslinging . | . . . Exploded 2 | . . 2 Melee . | . . . Uniques/NPCs Destroyed . | . . . Combat | -11 -10 -10 -------- Run | Scr Mat Min Damage Taken 1354 | . 887 467 Core 255 | . 168 87 Absorbed by Shields . | . . . Core Remaining (%) 100 | 100 . . Volleys Fired 129 | 6 104 19 Largest 2 | 2 2 2 Hottest 100 | 40 100 40 Shots Fired 247 | 12 200 35 Gun 239 | 12 195 32 Cannon . | . . . Launcher 3 | . . 3 Special 5 | . 5 . Kinetic 239 | 12 195 32 Thermal 5 | . 5 . Explosive 3 | . . 3 Electromagnetic . | . . . Robot Hit Streak 13 | 4 13 10 Robot Miss Streak 6 | 2 6 2 Penetration Max . | . . . Secondary Targets 3 | . 3 . Max Gunslinging Chain 1 | . 1 . Shots Hit Robots 171 | 7 138 26 Core Hits 80 | 5 48 27 Critical Hits 1 | . . 1 Critical Kills 1 | . . 1 Critical Parts Destroyed . | . . . Melee Attacks . | . . . Impact . | . . . Slashing . | . . . Piercing . | . . . Sneak Attacks . | . . . Combat Hostiles . | . . . Follow-up Attacks . | . . . Damage Inflicted 2490 | 88 1747 655 Guns 2044 | 88 1649 307 Cannons . | . . . Explosions 446 | . 98 348 Melee . | . . . Ramming . | . . . Kinetic 2044 | 88 1649 307 Thermal . | . . . Explosive 348 | . . 348 Electromagnetic 98 | . 98 . Impact . | . . . Slashing . | . . . Piercing . | . . . Highest Corruption . | . . . Average Corruption . | . . . Corruption Purged . | . . . Overload Shots . | . . . Overflow Damage . | . . . Projectiles . | . . . Explosions . | . . . Melee . | . . . Knockbacks . | . . . Impact . | . . . Kinetic . | . . . Secondary . | . . . Self-Inflicted Damage 36 | . 36 . Shots 1 | . 1 . Rammed . | . . . Targets Rammed . | . . . Kicked . | . . . Crushed . | . . . Highest Temperature 21 | . 21 4 Average Temperature 8 | . 9 2 Received Heat Transfer 423 | . 396 27 Siege Activations . | . . . Robots Corrupted 1 | . 1 . Combat Hostiles . | . . . Parts Fried 1 | . 1 . Impact Corruptions . | . . . Robots Melted . | . . . Combat Hostiles . | . . . Parts Melted . | . . . Heat Transferred . | . . . Parts Sabotaged . | . . . Parts Stolen . | . . . Parts Stripped . | . . . Power Chain Reactions . | . . . Missiles Intercepted . | . . . Alert | -11 -10 -10 ------- Run | Scr Mat Min Peak Influence 403 | 15 403 174 Initial 114 | . 9 114 Average 261 | 6 282 168 Maximum Alert Level 2 | . 2 . Low Security (%) 22 | 100 9 100 Level 1 72 | . 84 . Level 2 5 | . 6 . Level 3 . | . . . Level 4 . | . . . Level 5 . | . . . High Security . | . . . Max Security . | . . . Squads Dispatched 5 | . 5 . Investigation 4 | . 4 . Extermination . | . . . Reinforcement 1 | . 1 . Assault . | . . . Garrison . | . . . Intercept . | . . . Construction Impeded . | . . . Haulers Reinforced . | . . . Stealth | -11 -10 -10 --------- Run | Scr Mat Min Distress Signals 1 | . 1 . Communications Jammed . | . . . Distress Signals . | . . . Times Spotted 48 | . 30 18 Peak Tracking Total 13 | . 5 13 Tactical Retreats . | . . . Traps | -11 -10 -10 ------- Run | Scr Mat Min Traps Triggered 2 | . 2 . Indirectly . | . . . Trap Hack Attempts . | . . . Triggered . | . . . Disarmed . | . . . Reprogrammed . | . . . Reused . | . . . Traps Extracted . | . . . Installed . | . . . Triggered . | . . . Machines | -11 -10 -10 ---------- Run | Scr Mat Min Machines Disabled 5 | . 5 . Max in Single Turn 2 | . 2 . Machines Sabotaged . | . . . Garrisons Compromised . | . . . Overloaded Fab Kills . | . . . Fab Network Shutdowns . | . . . Hacking | -11 -10 -10 --------- Run | Scr Mat Min Machines Accessed 11 | . 10 1 Terminals 7 | . 7 . Fabricators . | . . . Repair Stations 1 | . 1 . Recycling Units 2 | . 2 . Scanalyzers . | . . . Garrison Access . | . . . Total Hacks 39 | . 38 1 Successful 26 | . 25 1 Failed 12 | . 12 . Catastrophic . | . . . Database Lockouts 1 | . 1 . Manual 23 | . 23 . Terminals 24 | . 24 . Fabricators . | . . . Repair Stations 8 | . 8 . Recycling Units 6 | . 6 . Scanalyzers . | . . . Garrison Access . | . . . Terminal Hacks 10 | . 9 1 Part Schematic 2 | . 2 . Robot Analysis 1 | . 1 . Prototype ID Bank 1 | . 1 . Open Door 1 | . . 1 Terminal Index 1 | . 1 . Transport Status 1 | . 1 . Hauler Manifests 1 | . 1 . Zone Layout 2 | . 2 . Fabricator Hacks . | . . . Repair Station Hacks 7 | . 7 . Scan Component 4 | . 4 . Repair 3 | . 3 . Recycling Unit Hacks 2 | . 2 . Retrieve Components 2 | . 2 . Scanalyzer . | . . . Garrison Access Hacks . | . . . Unauthorized Hacks 7 | . 7 . Terminals 5 | . 5 . Botnet 4 | . 4 . Operators 1 | . 1 . Fabricators . | . . . Repair Stations . | . . . Recycling Units 2 | . 2 . Reject 1 | . 1 . Mask 1 | . 1 . Scanalyzers . | . . . Garrison Access . | . . . Data Cores Recovered . | . . . Used . | . . . Hacking Detections 8 | . 8 . Full Trace Events 3 | . 3 . Feedback Events . | . . . Feedback Blocked . | . . . Robot Schematics Acquired . | . . . Robots Built . | . . . Matter . | . . . Time . | . . . Total Robot Build Rating . | . . . Part Schematics Acquired 2 | . 2 . Parts Built . | . . . Matter . | . . . Time . | . . . Total Part Build Rating . | . . . Parts Repaired 3 | . 3 . Time 78 | . 78 . Parts Recycled . | . . . Recycled Matter . | . . . Retrieved Matter . | . . . Retrieved Components 6 | . 6 . Parts Scanalyzed . | . . . Part Schematics Acquired . | . . . Parts Damaged . | . . . Bothacking | -11 -10 -10 ------------ Run | Scr Mat Min Used RIF Installer . | . . . Robots Hacked . | . . . Non-combat . | . . . Combat . | . . . Robot Hacks Applied . | . . . Relay Couplers Released . | . . . Robots Rewired . | . . . Allies Hacked . | . . . Hacks Repelled . | . . . Allies | -11 -10 -10 -------- Run | Scr Mat Min Total Allies . | . . . Largest Group . | . . . Highest-Rated Group . | . . . Highest-Rated Ally . | . . . Total Orders . | . . . Ally Attacks . | . . . Total Damage . | . . . Kills . | . . . Allies Corrupted . | . . . Allies Melted . | . . . Intel | -11 -10 -10 ------- Run | Scr Mat Min Robot Analysis Total 1 | . 1 . Derelict Logs Recovered 2 | . . 2 Drone Launches . | . . . Drone Recoveries . | . . . Exploration | -11 -10 -10 ------------- Run | Scr Mat Min Turns Passed 1840 | 58 1577 205 Spaces Moved 1033 | 36 917 80 Core 501 | 36 465 . Treads 532 | . 452 80 Legs . | . . . Wheels . | . . . Hover . | . . . Flight . | . . . Fastest Speed 50 | 50 50 180 Average Speed 124 | 50 122 180 Slowest Speed 180 | 50 180 180 Overloaded Moves . | . . . Propulsion Burnouts . | . . . Robots Hopped . | . . . Cave-ins Triggered . | . . . Exploration Rate (%) 40 | 4 98 18 Regions Visited 2 Branch Regions 1 Pre-discovered Areas . | . . . Known Exits Taken 1 | . 1 . Unknown Exits Taken 1 | 1 . . Scrap Searched . | . . . Spaces Dug 2 | . 2 . Terrain Destroyed 23 | . 2 21 Melee . | . . . Projectile 2 | . 2 . AOE 21 | . . 21 Terrain Rammed . | . . . Walls Destroyed . | . . . Machines Disabled . | . . . Actions | -11 -10 -10 --------- Run | Scr Mat Min Total 1338 | 62 1168 108 Wait 99 | 12 87 . Move 1031 | 35 916 80 Hop . | . . . Pick Up 29 | 3 25 1 Fast Attach 14 | 5 8 1 Attach 3 | . 2 1 Detach 4 | 1 2 1 Swap 11 | . 9 2 Drop 18 | . 15 3 Fire 129 | 6 104 19 Melee . | . . . Ram . | . . . Kick . | . . . Crush . | . . . Escape Stasis . | . . . Rewire . | . . . Trap . | . . . Miscellaneous . | . . . Route ------- -11/Scrapyard -10/Materials (discovered 4 exits: *Mat x3 / *Min) -10/Mines History --------- Turn | Location | Event 24 | -11/Scrapyard | Discovered new exit (range 15) 59 | -11/Scrapyard | Entered Materials 108 | -10/Materials | Discovered new exit (range 16) 119 | -10/Materials | Identified exit to Mines 274 | -10/Materials | Destroyed 8 combat bots 278 | -10/Materials | Discovered new exit (range 10) 311 | -10/Materials | Build established: Mutant 322 | -10/Materials | Repaired Lrg. Storage Unit 349 | -10/Materials | Repaired Lgt. Treads? 356 | -10/Materials | Identified exit to Materials 406 | -10/Materials | Repaired Assault Rifle 521 | -10/Materials | Discovered exit to Materials (range 5) 683 | -10/Materials | Core integrity fell below 50% 879 | -10/Materials | Discovered exit to Materials (range 14) 1000 | -10/Materials | Central database locked down 1636 | -10/Materials | Entered Mines 1718 | -10/Mines | Learned Materials terminal intel 1723 | -10/Mines | Found the Drone Emporium 1733 | -10/Mines | Found Prototype Device 1791 | -10/Mines | Assembled infested the area 1824 | -10/Mines | Core integrity fell below 20% 1841 | -10/Mines | Destroyed by as-95983 with Assembled Heavy Rifle Last Messages --------------- were from the Merchants Guild. I haven't even officially opened my Drone Emporium yet but am totally ready to tell them where they can shove that C&D." 01725_ NU-AHH(g): "I'm a fan of the free market. Free drones for all! No strings attached!" 01732_ Dropped Assault Rifle. 01733_ Dropped Transport Network Coupler. 01733_ Acquired Prototype Device. 01791_ ALERT: Infestation in the mines, dispatching Demolisher response squad. 01805_ Lgt. Treads severed. 01807_ Lgt. Treads destroyed. 01807_ as-53454 destroyed. 01810_ as-39229 destroyed. 01819_ as-65054 destroyed. 01828_ as-79128 destroyed. 01831_ Assault Rifle destroyed. 01837_ Lgt. Nuclear Core destroyed. 01837_ as-83769 destroyed. 01839_ as-64762 destroyed. 01841_ as-71756 destroyed. 01841_ as-35076 destroyed. Map ----- +----------------------------------------------------+ | | | | | | | | | | | | | | | | | | | | | | | | | | | | | | | | | ??????????????????????##?###??????????????######?? | | ??????????????????##?# # ?????????????##""""##? | | ?????????????????## ? ?????????????#"[ "#? | | ?????????????????# ?????????????#" ! "#? | | ??????????????#### #######???????## ##? | | ??????????????# #???????### ###? | | ??????????????????# ### ###????## X ## | | ?????????????????# ## % #?# #????# # | | ?????????????????# ????#a #??# #????# # | | ????????????????????????#@#???### #????# # | | ????????????????????????#%#????## #????# # | | ????????????????????????#a#???## ##???# # | | ????????????????????????# ##### ##??# # | | ???????????????????? aa ##?# # | | ??????????????????????########## ##### ###### | | ???????????????????????????????# ### #### #????? | | ???????????????????????????????# ??## =#????? | | ???????????????????????????????# ???# ###!#????? | | ???????????????????????????????# ???## ##?# #????? | | ??????????????????????????????? ????###??#=#????? | | ???????????????????????????????##?????????#%#????? | | ??????????????????????????????????????????#!#????? | | ??????????????????????????????????????????#*#????? | | ??????????????????????????????????????????# #????? | | ????????????????????????????????????????### ###??? | | ????????????????????????????????????????# #??? | | ????????????????????????????????????????# #??? | | ????????????????????????????????????????# """ #??? | | ????????????????????????????????????????# """ #??? | | ????????????????????????????????????????# """ #??? | | ????????????????????????????????????????# #??? | | ????????????????????????????????????????# * #??? | | ????????????????????????????????????????# ! [#??? | | ????????????????????????????????????????# =[%#??? | +----------------------------------------------------+ Best States ------------- Heat Dissipation 25 Energy Generation 14 Energy Capacity 250 Matter Stores 300 Matter Capacity 300 Sight Range 18 Terrain Scan Density 10 Evasion (%) 50 Recoil Reduction 2 Item Schematics ----------------- Hcp. Storage Unit | -10/Materials | Hacked Med. Storage Unit | -10/Materials | Hacked Robot Schematics ------------------ None Fabricated ------------ Nothing Alien Tech Used ----------------- None Achievements -------------- None Challenges ------------ None Game ------ Seed DeuteriumRelayBiocell Manual? 0 Play Time 00:16:35 Cumulative 276.0 hours Start 2021.02.04 @ 22:12:17 End 2021.02.04 @ 22:26:58 Sessions 1 Manual Loads 0 Difficulty Rogue Special Mode None Game No. 241 Rogue 241 Adventurer 0 Explorer 0 Win Type - Total 1 Types 0/0/0/1/0/0/0/0/0 Lore% 64 Gallery% 74 Achievement% 57 Wizard Run 0 Options --------- ASCII 0 Keyboard 1 Movement Numpad Keybinds 0 Fullscreen 1 Font 12/Terminus Map View 83x54 Tactical HUD 1 Map Filters NONE Filters NONE Steam 1 RUN: 3fa0be98-77fa-4b66-b644-1d1fa77abe51